fUSD/lending_fUSD_20260408
["ID","MTS","AMOUNT","RATE_DAILY","PERIOD"]
[420104243,1775677857204,-2198.865126,0.00015862,2]
[420104244,1775677857214,-1316.005703,0.00015862,2]
[420104245,1775677857223,-151.0,0.00015862,2]
[420104246,1775677857232,-151.0,0.00015862,2]
[420104247,1775677857242,-2198.865126,0.00015862,2]
[420104248,1775677857251,-151.0,0.00015862,2]
[420104249,1775677857261,-1094.962585,0.00015862,2]
[420104250,1775677857270,-1316.005703,0.00015862,2]
[420104251,1775677857279,-151.0,0.00015862,2]
[420104252,1775677857289,-2198.865126,0.00015862,2]
[420104253,1775677857299,-213.120018,0.00015862,2]
[420104254,1775677857308,-151.0,0.00015862,2]
[420104255,1775677857318,-1094.962585,0.00015862,2]
[420104256,1775677857328,-1316.005703,0.00015862,2]
[420104257,1775677857337,-2198.865126,0.00015862,2]
[420104258,1775677857347,-213.120018,0.00015862,2]
[420104259,1775677857357,-257.419435,0.00015862,2]
[420104260,1775677857366,-173.11038,0.00015862,2]
[420104261,1775677857376,-151.0,0.00015862,2]
[420104262,1775677857386,-1094.962585,0.00015862,2]
[420104263,1775677857395,-151.0,0.00015862,2]
[420104264,1775677857405,-213.120018,0.00015862,2]
[420104265,1775677857415,-173.11038,0.00015862,2]
[420104266,1775677857424,-257.419435,0.00015862,2]
[420104267,1775677857433,-151.0,0.00015862,2]
[420104268,1775677857443,-1094.962585,0.00015862,2]
[420104269,1775677857453,-157.854968,0.00015862,2]
[420104270,1775677857462,-213.120018,0.00015862,2]
[420104271,1775677857472,-257.419435,0.00015862,2]
[420104272,1775677857481,-173.11038,0.00015862,2]
[420104273,1775677857491,-151.0,0.00015862,2]
[420104274,1775677857500,-201.410641,0.00015862,2]
[420104275,1775677857510,-151.0,0.00015862,2]
[420104276,1775677857520,-151.0,0.00015862,2]
[420104277,1775677857530,-257.419435,0.00015862,2]
[420104278,1775677857541,-173.11038,0.00015862,2]
[420104279,1775677857551,-151.0,0.00015862,2]
[420104280,1775677857561,-151.0,0.00015862,2]
[420104281,1775677857573,-201.410641,0.00015862,2]
[420104282,1775677857588,-151.0,0.00015862,2]
[420104283,1775677857604,-175.423455,0.00015862,2]
[420104284,1775677857614,-257.860135,0.00015862,2]
[420104285,1775677857624,-151.0,0.00015862,2]
[420104286,1775677857633,-151.0,0.00015862,2]
[420104287,1775677857643,-201.410641,0.00015862,2]
[420104288,1775677857653,-212.753661,0.00015862,2]
[420104289,1775677857661,-151.0,0.00015862,2]
[420104290,1775677857671,-151.0,0.00015862,2]
[420104291,1775677857681,-201.410641,0.00015862,2]
[420104292,1775677857691,-151.0,0.00015862,2]
[420104293,1775677857701,-151.0,0.00015862,2]
[420104294,1775677857711,-155.998488,0.00015862,2]
[420104295,1775677857722,-151.0,0.00015862,2]
[420104296,1775677857732,-151.0,0.00015862,2]
[420104297,1775677857742,-281.058131,0.00015862,2]
[420104298,1775677857752,-177.372723,0.00015862,2]
[420104299,1775677857762,-151.0,0.00015862,2]
[420104300,1775677857772,-281.058131,0.00015862,2]
[420104301,1775677857782,-155.998488,0.00015862,2]
[420104302,1775677857792,-151.0,0.00015862,2]
[420104303,1775677857801,-281.058131,0.00015862,2]
[420104304,1775677857811,-151.0,0.00015862,2]
[420104305,1775677857821,-155.998488,0.00015862,2]
[420104306,1775677857830,-151.0,0.00015862,2]
[420104307,1775677857840,-281.058131,0.00015862,2]
[420104308,1775677857849,-151.0,0.00015862,2]
[420104309,1775677857859,-155.998488,0.00015862,2]
[420104310,1775677857869,-185.437452,0.00015862,2]
[420104311,1775677857879,-152.394125,0.00015862,2]
[420104312,1775677857890,-196.173655,0.00015862,2]
[420104313,1775677857900,-196.173655,0.00015862,2]
[420104314,1775677857910,-196.173655,0.00015862,2]
[420104315,1775677857920,-151.0,0.00015862,2]
[420104316,1775677857930,-196.173655,0.00015862,2]
[420104317,1775677857940,-300.389171,0.00015862,2]
[420104318,1775677857951,-151.0,0.00015862,2]
[420104319,1775677857961,-300.389171,0.00015862,2]
[420104320,1775677857971,-151.0,0.00015862,2]
[420104321,1775677857981,-300.389171,0.00015862,2]
[420104322,1775677857991,-151.103673,0.00015862,2]
[420104323,1775677858001,-300.389171,0.00015862,2]
[420104324,1775677858011,-153.577894,0.00015862,2]
[420104325,1775677858021,-151.0,0.00015862,2]
[420104326,1775677858031,-151.0,0.00015862,2]
[420104327,1775677858041,-4373.0,0.00015863,2]
[420104328,1775677858052,-163.8001,0.0001587,2]
[420104329,1775677858063,-500.0,0.00015871,2]
[420104330,1775677858073,-200.0,0.00015871,2]
[420104331,1775677858083,-500.0,0.00015872,2]
[420104332,1775677858093,-500.0,0.00015872,2]
[420104333,1775677858103,-500.0,0.00015872,2]
[420104334,1775677858113,-500.0,0.00015872,2]
[420104335,1775677858122,-500.0,0.00015872,2]
[420104336,1775677858132,-200.0,0.00015872,2]
[420104337,1775677858141,-200.0,0.00015872,2]
[420104338,1775677858152,-1000.0,0.00015873,2]
[420104339,1775677858162,-350.0,0.00015877,2]
[420104340,1775677858172,-193.9084,0.0001588,2]
[420104341,1775677858182,-4373.0,0.00015887,2]
[420104342,1775677858193,-1000.0,0.00015887,2]
[420104343,1775677858203,-350.0,0.0001589,2]
[420104344,1775677858214,-500.0,0.0001589,2]
[420104345,1775677858225,-500.0,0.0001589,2]
[420104346,1775677858235,-500.0,0.0001589,2]
[420104347,1775677858246,-500.0,0.0001589,2]
[420104348,1775677858256,-500.0,0.0001589,2]
[420104349,1775677858266,-500.0,0.0001589,2]
[420104350,1775677858277,-500.0,0.0001589,2]
[420104351,1775677858287,-500.0,0.0001589,2]
[420104352,1775677858298,-500.0,0.0001589,2]
[420104353,1775677858309,-500.0,0.0001589,2]
[420104354,1775677858320,-500.0,0.0001589,2]
[420104355,1775677858331,-500.0,0.0001589,2]
[420104356,1775677858341,-500.0,0.0001589,2]
[420104357,1775677858352,-500.0,0.0001589,2]
[420104358,1775677858363,-500.0,0.0001589,2]
[420104359,1775677858373,-500.0,0.0001589,2]
[420104360,1775677858383,-500.0,0.0001589,2]
[420104361,1775677858393,-500.0,0.0001589,2]
[420104362,1775677858403,-500.0,0.0001589,2]
[420104363,1775677858414,-500.0,0.0001589,2]
[420104364,1775677858431,-500.0,0.0001589,2]
[420104365,1775677858442,-500.0,0.0001589,2]
[420104366,1775677858452,-2500.0,0.0001589,2]
[420104367,1775677858462,-2500.0,0.0001589,2]
[420104368,1775677858473,-418.29613778,0.0001589,2]
[420104369,1775677858484,-2108.52370018,0.0001589,2]
[420104370,1775677858496,-288.04541729,0.0001589,2]
[420104371,1775677858508,-2500.0,0.0001589,2]
[420104372,1775677858519,-2500.0,0.0001589,2]
[420104373,1775677858529,-1068.5,0.00015891,2]
[420104374,1775677858540,-24103.83640194,0.000159,3]
[420104375,1775677858553,-357.750905,0.000159,2]
[420104376,1775677858564,-151.0,0.000159,2]
[420104377,1775677858575,-357.750905,0.000159,2]
[420104378,1775677858586,-151.0,0.000159,2]
[420104379,1775677858596,-357.750905,0.000159,2]
[420104380,1775677858606,-151.0,0.000159,2]
[420104381,1775677858617,-151.0,0.000159,2]
[420104382,1775677858627,-357.750905,0.000159,2]
[420104383,1775677858637,-151.0,0.000159,2]
[420104384,1775677858648,-151.0,0.000159,2]
[420104385,1775677858658,-151.0,0.000159,2]
[420104386,1775677858668,-151.0,0.000159,2]
[420104387,1775677858679,-283.150883,0.000159,2]
[420104388,1775677858690,-479.643795,0.000159,2]
[420104389,1775677858701,-283.150883,0.000159,2]
[420104390,1775677858711,-151.0,0.000159,2]
[420104391,1775677858722,-479.643795,0.000159,2]
[420104392,1775677858733,-283.150883,0.000159,2]
[420104393,1775677858744,-479.643795,0.000159,2]
[420104394,1775677858754,-283.150883,0.000159,2]
[420104395,1775677858765,-479.643795,0.000159,2]
[420104396,1775677858776,-151.0,0.000159,2]
[420104397,1775677858787,-295.41666,0.000159,2]
[420104398,1775677858797,-151.0,0.000159,2]
[420104399,1775677858807,-151.0,0.000159,2]
[420104400,1775677858818,-151.0,0.000159,2]
[420104401,1775677858829,-151.0,0.000159,2]
[420104402,1775677858839,-151.0,0.000159,2]
[420104403,1775677858850,-151.0,0.000159,2]
[420104404,1775677858861,-281.814743,0.000159,2]
[420104405,1775677858872,-281.814743,0.000159,2]
[420104406,1775677858883,-183.879532,0.000159,2]
[420104407,1775677858894,-281.814743,0.000159,2]
[420104408,1775677858905,-183.879532,0.000159,2]
[420104409,1775677858916,-281.814743,0.000159,2]
[420104410,1775677858927,-183.879532,0.000159,2]
[420104411,1775677858938,-183.879532,0.000159,2]
[420104412,1775677858949,-157.215334,0.000159,2]
[420104413,1775677858959,-799.667275,0.000159,2]
[420104414,1775677858969,-157.215334,0.000159,2]
[420104415,1775677858980,-157.215334,0.000159,2]
[420104416,1775677858992,-157.215334,0.000159,2]
[420104417,1775677859003,-799.667275,0.000159,2]
[420104418,1775677859014,-799.667275,0.000159,2]
[420104419,1775677859025,-799.667275,0.000159,2]
[420104420,1775677859037,-151.0,0.000159,2]
[420104421,1775677859047,-151.0,0.000159,2]
[420104422,1775677859058,-151.0,0.000159,2]
[420104423,1775677859068,-151.0,0.000159,2]
[420104424,1775677859079,-151.0,0.000159,2]
[420104425,1775677859089,-151.0,0.000159,2]
[420104426,1775677859100,-151.0,0.000159,2]
[420104427,1775677859111,-185.081385,0.000159,2]
[420104428,1775677859122,-151.0,0.000159,2]
[420104429,1775677859132,-185.081385,0.000159,2]
[420104430,1775677859143,-151.0,0.000159,2]
[420104431,1775677859153,-185.081385,0.000159,2]
[420104432,1775677859164,-151.0,0.000159,2]
[420104433,1775677859175,-185.081385,0.000159,2]
[420104434,1775677859185,-151.0,0.000159,2]
[420104435,1775677859195,-151.0,0.000159,2]
[420104436,1775677859206,-205.004796,0.000159,2]
[420104437,1775677859217,-374.008372,0.000159,2]
[420104438,1775677859228,-205.004796,0.000159,2]
[420104439,1775677859238,-374.008372,0.000159,2]
[420104440,1775677859249,-739.927982,0.000159,2]
[420104441,1775677859259,-205.004796,0.000159,2]
[420104442,1775677859268,-374.008372,0.000159,2]
[420104443,1775677859279,-739.927982,0.000159,2]
[420104444,1775677859289,-205.004796,0.000159,2]
[420104445,1775677859299,-739.927982,0.000159,2]
[420104446,1775677859309,-374.008372,0.000159,2]
[420104447,1775677859318,-739.927982,0.000159,2]
[420104448,1775677859328,-151.0,0.000159,2]
[420104449,1775677859337,-155.623108,0.000159,2]
[420104450,1775677859346,-155.623108,0.000159,2]
[420104451,1775677859356,-155.623108,0.000159,2]
[420104452,1775677859366,-155.623108,0.000159,2]
[420104453,1775677859376,-151.0,0.000159,2]
[420104454,1775677859386,-256.376188,0.000159,2]
[420104455,1775677859395,-256.376188,0.000159,2]
[420104456,1775677859404,-151.0,0.000159,2]
[420104457,1775677859414,-525.417452,0.000159,2]
[420104458,1775677859424,-256.376188,0.000159,2]
[420104459,1775677859435,-525.417452,0.000159,2]
[420104460,1775677859444,-151.0,0.000159,2]
[420104461,1775677859454,-169.383801,0.000159,2]
[420104462,1775677859464,-256.376188,0.000159,2]
[420104463,1775677859474,-151.0,0.000159,2]
[420104464,1775677859484,-525.417452,0.000159,2]
[420104465,1775677859494,-151.0,0.000159,2]
[420104466,1775677859504,-151.0,0.000159,2]
[420104467,1775677859514,-525.417452,0.000159,2]
[420104468,1775677859523,-151.0,0.000159,2]
[420104469,1775677859533,-636.376379,0.000159,2]
[420104470,1775677859543,-481.943384,0.000159,2]
[420104471,1775677859553,-151.0,0.000159,2]
[420104472,1775677859562,-151.0,0.000159,2]
[420104473,1775677859572,-151.0,0.000159,2]
[420104474,1775677859581,-466.087884,0.000159,2]
[420104475,1775677859592,-636.376379,0.000159,2]
[420104476,1775677859601,-481.943384,0.000159,2]
[420104477,1775677859612,-151.0,0.000159,2]
[420104478,1775677859623,-466.087884,0.000159,2]
[420104479,1775677859632,-481.943384,0.000159,2]
[420104480,1775677859642,-306.368959,0.000159,2]
[420104481,1775677859653,-636.376379,0.000159,2]
[420104482,1775677859662,-466.087884,0.000159,2]
[420104483,1775677859672,-481.943384,0.000159,2]
[420104484,1775677859681,-306.368959,0.000159,2]
[420104485,1775677859690,-636.376379,0.000159,2]
[420104486,1775677859700,-466.087884,0.000159,2]
[420104487,1775677859710,-306.368959,0.000159,2]
[420104488,1775677859719,-306.368959,0.000159,2]
[420104489,1775677859729,-151.0,0.000159,2]
[420104490,1775677859740,-4700.0,0.000159,5]
[420104491,1775677859750,-327.178041,0.000159,2]
[420104492,1775677859760,-160.486882,0.000159,2]
[420104493,1775677859770,-151.0,0.000159,2]
[420104494,1775677859781,-151.0,0.000159,2]
[420104495,1775677859790,-327.178041,0.000159,2]
[420104496,1775677859800,-286.70788,0.000159,2]
[420104497,1775677859810,-327.178041,0.000159,2]
[420104498,1775677859820,-327.178041,0.000159,2]
[420104499,1775677859829,-253.864605,0.000159,2]
[420104500,1775677859839,-820.296437,0.000159,2]
[420104501,1775677859849,-253.864605,0.000159,2]
[420104502,1775677859858,-820.296437,0.000159,2]
[420104503,1775677859868,-253.864605,0.000159,2]
[420104504,1775677859877,-820.296437,0.000159,2]
[420104505,1775677859887,-253.864605,0.000159,2]
[420104506,1775677859896,-820.296437,0.000159,2]
[420104507,1775677859906,-55566.61594827,0.000159,2]
[420104508,1775677859916,-540.97569897,0.000159,2]
[420104509,1775677859926,-151.3157307,0.000159,2]
[420104510,1775677859936,-151.3157307,0.000159,2]
[420104511,1775677859945,-151.3157307,0.000159,2]
[420104512,1775677859955,-552.25810328,0.000159,2]
[420104513,1775677859965,-7523.91385164,0.000159,2]
[420104514,1775677859974,-392.40536827,0.000159,2]
[420104515,1775677859983,-2000.0,0.000159,2]
[420104516,1775677859993,-4373.0,0.00015905,2]
[420104517,1775677860002,-350.0,0.00015914,2]
[420104518,1775677860012,-4373.0,0.00015915,2]
[420104519,1775677860022,-250.0,0.0001594,2]
[420104520,1775677860031,-1000.0,0.0001594,2]
[420104521,1775677860041,-150.0,0.00015958,2]
[420104522,1775677860050,-1000.0,0.00015974,2]
[420104523,1775677860060,-994.01934182,0.00015977,2]
[420104524,1775677860070,-151.0,0.00015997,2]
[420104525,1775677860080,-151.0,0.00015997,2]
[420104526,1775677860089,-666.0,0.00015999,2]
[420104527,1775677860098,-666.0,0.00015999,2]
[420104528,1775677860109,-453589.4773439,0.00016,2]
[420104529,1775677860118,-1261093.24897816,0.00016,2]
[420104530,1775677861341,-5861.0,0.00016,2]
[420104531,1775677861381,-14468.54873405,0.00016,2]
[420104532,1775677861392,-426.61846658,0.00016,2]
[420104533,1775677861672,-174.64844343,0.00012227,2]
[420104534,1775677861684,-276.99747719,0.00012227,2]
[420104535,1775677861696,-967.26243953,0.00012227,2]
[420104536,1775677861706,-218.63,0.00013699,2]
[420104537,1775677861715,-2468388.34924707,0.00016,2]
[420104538,1775677861725,-1051686.74091423,0.00016,2]
[420104539,1775677861734,-223851.55118994,0.00016,2]
[420104540,1775677861847,-127101.62373971,0.00016,2]
[420104541,1775677861857,-289811.36285707,0.00016,2]
[420104542,1775677861888,-641.40626644,0.00012432,2]
[420104543,1775677862183,-195.35678706,9.421e-05,2]
[420104544,1775677863200,-417.37929,8.74e-05,2]
[420104545,1775677863213,-355.535,8.74e-05,2]
[420104546,1775677863226,-1727.08571,8.74e-05,2]
[420104547,1775677863235,-272.64321294,9.421e-05,2]
[420104548,1775677863246,-500.0,0.0001,2]
[420104549,1775677863256,-3130.59373356,0.00012432,2]
[420104550,1775677863266,-3772.0,0.00015432,2]
[420104551,1775677863276,-9396.95927235,0.00016,2]
[420104552,1775677863292,-3064.06651909,0.00016,2]
[420104553,1775677878875,-150.0,8.838e-05,2]
[420104554,1775677878904,-300.0,8.838e-05,2]
[420104555,1775677879350,3433.0,8.74e-05,2]
[420104556,1775677889005,4213.216,8.565e-05,2]
[420104557,1775677889079,221.692,8.565e-05,2]
[420104558,1775677911883,200.0,8.9e-05,3]
[420104559,1775677914018,400.0,9e-05,3]
[420104560,1775677926896,197.0441,8.562e-05,2]
[420104561,1775677943122,400.0,8.9e-05,3]
[420104562,1775677945225,900.0,9e-05,3]
[420104563,1775678024865,1100.0,8.9e-05,3]
[420104564,1775678026957,2300.0,9e-05,3]
[420104565,1775678053131,900.0,8.9e-05,3]
[420104566,1775678055348,1900.0,9e-05,3]
[420104567,1775678102077,700.0,8.9e-05,3]
[420104568,1775678112465,1400.0,9e-05,3]
[420104581,1775678269325,725.43,8.36e-05,2]
[420104600,1775678690838,166.66,8.604e-05,2]
[420104602,1775678743208,-166.34179253,8.639e-05,2]
[420104603,1775678834611,3300.0,8.8e-05,3]
[420104604,1775678834642,200.0,8.8e-05,3]
[420104605,1775678835378,7100.0,8.9e-05,3]
[420104606,1775678837481,10700.0,9e-05,3]
[420104607,1775678847580,-1033.65820747,8.639e-05,2]
[420104608,1775678847602,-250.0,8.639e-05,2]
[420104609,1775678847624,-1253.00982838,8.64e-05,2]
[420104619,1775678947099,-459.51567162,8.64e-05,2]
[420104620,1775678947120,-2425.2951,8.64e-05,2]
[420104621,1775678947142,-250.0,8.664e-05,2]
[420104622,1775678947164,-300.0,8.712e-05,2]
[420104623,1775678947186,-300.0,8.712e-05,2]
[420104624,1775678947209,-500.0,8.713e-05,2]
[420104625,1775678947230,-500.0,8.713e-05,2]
[420104626,1775678947254,-500.0,8.713e-05,2]
[420104627,1775678947276,-500.0,8.713e-05,2]
[420104628,1775678947298,-500.0,8.713e-05,2]
[420104629,1775678947320,-500.0,8.713e-05,2]
[420104630,1775678947341,-308.57923412,8.713e-05,2]
[420104631,1775678947363,-500.0,8.713e-05,2]
[420104632,1775678947385,-151.0,8.737e-05,2]
[420104633,1775678947407,-151.0,8.737e-05,2]
[420104634,1775678947427,-150.0,8.738e-05,2]
[420104635,1775678947448,-634.23081963,8.739e-05,2]
[420104636,1775678947472,-1064.96,8.739e-05,2]
[420104637,1775678947495,-3370.573,8.739e-05,2]
[420104638,1775678947516,-177.354,8.739e-05,2]
[420104639,1775678947538,-271.02144645,8.739e-05,2]
[420104640,1775678947559,-500.0,8.739e-05,2]
[420104641,1775678947580,-500.0,8.739e-05,2]
[420104642,1775678947604,-512.67309417,8.739e-05,2]
[420104643,1775678947626,-503.94798163,8.739e-05,2]
[420104644,1775678947645,-500.0,8.739e-05,2]
[420104645,1775678947664,-500.0,8.739e-05,2]
[420104646,1775678947684,-549.49537892,8.739e-05,2]
[420104647,1775678947702,-551.63647852,8.739e-05,2]
[420104648,1775678947723,-500.0,8.739e-05,2]
[420104649,1775678947743,-500.0,8.739e-05,2]
[420104650,1775678947763,-500.0,8.739e-05,2]
[420104651,1775678947787,-500.0,8.739e-05,2]
[420104652,1775678947807,-289.24207936,8.739e-05,2]
[420104653,1775678947826,-500.0,8.739e-05,2]
[420104654,1775678947850,-500.0,8.739e-05,2]
[420104655,1775678947871,-500.0,8.739e-05,2]
[420104656,1775678947895,-450.76702713,8.739e-05,2]
[420104657,1775678947914,-319.16512334,8.739e-05,2]
[420104658,1775678947939,-500.0,8.739e-05,2]
[420104659,1775678947960,-500.0,8.739e-05,2]
[420104660,1775678947985,-500.0,8.739e-05,2]
[420104661,1775678948007,-258.49226963,8.739e-05,2]
[420104662,1775678948032,-500.0,8.739e-05,2]
[420104663,1775678948057,-500.0,8.739e-05,2]
[420104664,1775678948083,-500.0,8.739e-05,2]
[420104665,1775678948108,-500.0,8.739e-05,2]
[420104666,1775678948135,-500.0,8.739e-05,2]
[420104667,1775678948164,-500.0,8.739e-05,2]
[420104668,1775678948192,-500.0,8.739e-05,2]
[420104669,1775678948221,-500.0,8.739e-05,2]
[420104670,1775678948249,-500.0,8.739e-05,2]
[420104671,1775678948276,-500.0,8.739e-05,2]
[420104672,1775678948304,-500.0,8.739e-05,2]
[420104673,1775678948325,-308.48519392,8.739e-05,2]
[420104674,1775678948347,-500.0,8.739e-05,2]
[420104675,1775678948372,-615.48921748,8.739e-05,2]
[420104676,1775678948395,-500.0,8.739e-05,2]
[420104677,1775678948419,-620.48511654,8.739e-05,2]
[420104678,1775678948445,-500.0,8.739e-05,2]
[420104679,1775678948474,-499.99999999,8.739e-05,2]
[420104680,1775678948499,-23748.15076755,8.74e-05,2]
[420104681,1775678952117,-500.0,8.713e-05,2]
[420104682,1775678952142,-30764.81233462,8.74e-05,2]
[420104691,1775679032131,-1200.0,8.639e-05,2]
[420104692,1775679032140,-500.0,8.639e-05,2]
[420104693,1775679032149,-30358.92328547,8.64e-05,2]
[420104694,1775679032278,-500.0,8.639e-05,2]
[420104695,1775679032287,-536.14553497,8.639e-05,2]
[420104696,1775679032297,-39237.20484589,8.64e-05,2]
[420104697,1775679032309,-969.80549567,8.64e-05,2]
[420104698,1775679032321,-5205.16495616,8.64e-05,2]
[420104699,1775679032333,-13225.43526591,8.64e-05,2]
[420104700,1775679032344,-1466.46,8.64e-05,2]
[420104701,1775679032429,-63395.86290779,8.64e-05,2]
[420104702,1775679032441,-13127.04337363,8.64e-05,2]
[420104767,1775679038515,-431.62659187,8.64e-05,2]
[420104768,1775679038651,-1332582.47327761,8.64e-05,2]
[420104769,1775679038661,-26116.6607,8.74e-05,2]
[420104770,1775679038672,-102329.0609,8.74e-05,2]
[420104771,1775679038684,-166.66,8.888e-05,2]
[420104772,1775679038695,-1000.0,8.999e-05,2]
[420104773,1775679038707,-1000.0,8.999e-05,2]
[420104774,1775679038718,-500.0,9.068e-05,2]
[420104775,1775679038729,-4548.13,9.071e-05,2]
[420104776,1775679038742,-213.11,9.108e-05,2]
[420104777,1775679038753,-561.0,9.138e-05,2]
[420104778,1775679038765,-166.66,9.172e-05,2]
[420104779,1775679038777,-17122.88,9.257e-05,2]
[420104780,1775679038789,-1000.0,9.261e-05,2]
[420104781,1775679038799,-1000.0,9.261e-05,2]
[420104782,1775679038808,-1000.0,9.261e-05,2]
[420104783,1775679038819,-2000.0,9.261e-05,2]
[420104784,1775679038829,-500.0,9.277e-05,2]
[420104785,1775679038840,-500.0,9.277e-05,2]
[420104786,1775679038853,-500.0,9.277e-05,2]
[420104787,1775679038864,-500.0,9.277e-05,2]
[420104788,1775679038875,-1384.0,9.28e-05,2]
[420104789,1775679038885,-150.0,9.331e-05,2]
[420104790,1775679038896,-227.40550479,9.379e-05,2]
[420104791,1775679038905,-501.16240007,9.379e-05,2]
[420104792,1775679038915,-500.0,9.433e-05,2]
[420104793,1775679038926,-166.66,9.456e-05,2]
[420104794,1775679038937,-1691.0,9.482e-05,2]
[420104795,1775679038947,-1193.0,9.501e-05,2]
[420104796,1775679038958,-5000.0,9.503e-05,2]
[420104797,1775679038969,-250.0,9.503e-05,2]
[420104798,1775679038980,-250.0,9.503e-05,2]
[420104799,1775679038990,-1680.0,9.503e-05,2]
[420104800,1775679039001,-250.0,9.504e-05,2]
[420104801,1775679039014,-4912.4379,9.514e-05,2]
[420104802,1775679039026,-818.0,9.52e-05,2]
[420104803,1775679039038,-1966.0,9.539e-05,2]
[420104804,1775679039048,-513.0,9.558e-05,2]
[420104805,1775679039059,-420.0,9.583e-05,2]
[420104806,1775679039071,-150.0,9.6e-05,2]
[420104807,1775679039081,-255.0,9.612e-05,2]
[420104808,1775679039091,-166.66,9.74e-05,2]
[420104809,1775679039103,-1500.0,9.808e-05,2]
[420104810,1775679039114,-1500.0,9.808e-05,2]
[420104811,1775679039127,-1500.0,9.808e-05,2]
[420104812,1775679039137,-1000.0,9.825e-05,2]
[420104813,1775679039149,-1000.0,9.825e-05,2]
[420104814,1775679039159,-1000.0,9.825e-05,2]
[420104815,1775679039170,-1600.0,9.877e-05,2]
[420104816,1775679039182,-501.73893264,9.981e-05,2]
[420104817,1775679039198,-151.0,0.0001,2]
[420104818,1775679039208,-151.0,0.0001,2]
[420104819,1775679039219,-151.0,0.0001,2]
[420104820,1775679039230,-151.0,0.0001,2]
[420104821,1775679039241,-151.0,0.0001,2]
[420104822,1775679039252,-151.0,0.0001,2]
[420104823,1775679039263,-500.0,0.0001,2]
[420104824,1775679039274,-151.0,0.0001,2]
[420104825,1775679039286,-500.0,0.0001,2]
[420104826,1775679039296,-151.0,0.0001,2]
[420104827,1775679039308,-500.0,0.0001,2]
[420104828,1775679039318,-500.0,0.0001,2]
[420104829,1775679039328,-151.0,0.0001,2]
[420104830,1775679039338,-500.0,0.0001,2]
[420104831,1775679039350,-151.0,0.0001,2]
[420104832,1775679039362,-151.0,0.0001,2]
[420104833,1775679039372,-151.0,0.0001,2]
[420104834,1775679039381,-151.0,0.0001,2]
[420104835,1775679039392,-151.0,0.0001,2]
[420104836,1775679039401,-151.0,0.0001,2]
[420104837,1775679039411,-200.0,0.0001,2]
[420104838,1775679039421,-151.0,0.0001,2]
[420104839,1775679039431,-151.0,0.0001,2]
[420104840,1775679039445,-151.0,0.0001,2]
[420104841,1775679039455,-151.0,0.0001,2]
[420104842,1775679039468,-151.0,0.0001,2]
[420104843,1775679039484,-151.0,0.0001,2]
[420104844,1775679039495,-151.0,0.0001,2]
[420104845,1775679039506,-151.0,0.0001,2]
[420104846,1775679039517,-151.0,0.0001,2]
[420104847,1775679039527,-151.0,0.0001,2]
[420104848,1775679039538,-151.0,0.0001,2]
[420104849,1775679039548,-151.0,0.0001,2]
[420104851,1775679039558,-155.45941456,0.0001,2]
[420104853,1775679039568,-1199.20597015,0.0001,2]
[420104855,1775679039579,-721.75070414,0.0001,2]
[420104857,1775679039589,-194.18662975,0.0001,2]
[420104859,1775679039600,-166.66,0.00010024,2]